Department Family,Entity,Financial Year,Financial Period,Invoice Date,Expense Type,Expense Area,Supplier Name,Transaction Number, Amount ,Description
NHS,King's College Hospital NHS Foundation Trust,2021,12,11/02/2021,Agency Other Medical,Surgery  and  Critical Care Management,18 Week Support Llp,106183," 34,654.00 ",Surgery  and  Critical Care Management
NHS,King's College Hospital NHS Foundation Trust,2021,12,10/12/2020,Healthcare From Commercial Sector,Endoscopy RTT,18 Week Support Llp,1005567," 41,272.00 ",Endoscopy RTT
NHS,King's College Hospital NHS Foundation Trust,2021,12,18/03/2021,External Consultancy Fees,Endoscopy RTT,18 Week Support Llp,1006728," 41,272.00 ",Endoscopy RTT
NHS,King's College Hospital NHS Foundation Trust,2021,12,18/03/2021,External Consultancy Fees,Endoscopy RTT,18 Week Support Llp,1006727," 41,272.00 ",Endoscopy RTT
NHS,King's College Hospital NHS Foundation Trust,2021,12,11/11/2020,Healthcare From Commercial Sector,Endoscopy RTT,18 Week Support Llp,1005053," 51,590.00 ",Endoscopy RTT
NHS,King's College Hospital NHS Foundation Trust,2021,12,11/11/2020,Agency Other Medical,Surgery  and  Critical Care Management,18 Week Support Llp,1005052," 52,828.00 ",Surgery  and  Critical Care Management
NHS,King's College Hospital NHS Foundation Trust,2021,12,25/11/2020,Healthcare From Commercial Sector,Endoscopy RTT,18 Week Support Llp,1005249," 68,464.00 ",Endoscopy RTT
NHS,King's College Hospital NHS Foundation Trust,2021,12,18/03/2021,Agency Nursing,Surgery  and  Critical Care Management,18 Week Support Llp,1006725," 70,792.00 ",Surgery  and  Critical Care Management
NHS,King's College Hospital NHS Foundation Trust,2021,12,18/03/2021,Agency Other Medical,Surgery  and  Critical Care Management,18 Week Support Llp,1006726," 91,144.00 ",Surgery  and  Critical Care Management
NHS,King's College Hospital NHS Foundation Trust,2021,12,18/03/2021,External Consultancy Fees,Endoscopy RTT,18 Week Support Llp,1006729," 96,140.00 ",Endoscopy RTT
NHS,King's College Hospital NHS Foundation Trust,2021,12,17/03/2021,Additions - Assets Under Construction,Oph Mobile Unit Estates Work,24/7 Flooring Ltd,321," 32,286.00 ",Fixed Asset
NHS,King's College Hospital NHS Foundation Trust,2021,12,28/02/2021,Additions - Assets Under Construction,Unit 1 Works (KFM),8build Ltd,CSI00658," 137,812.80 ",Fixed Asset
NHS,King's College Hospital NHS Foundation Trust,2021,12,23/01/2021,Additions - Assets Under Construction,De-gas of Dental & DSU,A & G Pipework & Welding,2168," 42,846.00 ",De-gas of Dental & DSU
NHS,King's College Hospital NHS Foundation Trust,2021,12,23/01/2021,Additions - Assets Under Construction,De-gas of Dental & DSU,A & G Pipework & Welding,2174," 46,917.60 ",De-gas of Dental & DSU
NHS,King's College Hospital NHS Foundation Trust,2021,12,23/02/2021,Additions - Assets Under Construction,Ruskin Chilled Water Loop Works,A & G Pipework & Welding,2173," 80,214.00 ",Ruskin Chilled Water Loop Works
NHS,King's College Hospital NHS Foundation Trust,2021,12,16/02/2021,Drugs,Stock,Alexion Pharma Uk Ltd,91003836," 68,040.00 ",Stock
NHS,King's College Hospital NHS Foundation Trust,2021,12,23/02/2021,Drugs,Stock,Alexion Pharma Uk Ltd,91006222," 105,840.00 ",Stock
NHS,King's College Hospital NHS Foundation Trust,2021,12,11/03/2021,Drugs,Stock,Alliance Healthcare Distribution Ltd,B13A06396," 29,127.07 ",Stock
NHS,King's College Hospital NHS Foundation Trust,2021,12,28/02/2021,Healthcare From Commercial Sector,Radiographers,Alliance Medical Ltd,AML-172730," 37,467.60 ",Radiographers
NHS,King's College Hospital NHS Foundation Trust,2021,12,28/02/2021,Provisions,Radiology Department,Alliance Medical Ltd,AML-172727," 76,062.62 ",Radiology Department
NHS,King's College Hospital NHS Foundation Trust,2021,12,31/01/2021,Provisions,Radiology Department,Alliance Medical Ltd,AML-170621," 78,814.14 ",Radiology Department
NHS,King's College Hospital NHS Foundation Trust,2021,12,31/12/2020,Provisions,Radiology Department,Alliance Medical Ltd,AML-168561," 90,022.56 ",Radiology Department
NHS,King's College Hospital NHS Foundation Trust,2021,12,23/02/2021,Net Pay-247Time,Net Pay-247Time,Allocate Software Ltd,IN-GB-007157," 29,625.00 ",Net Pay-247Time
NHS,King's College Hospital NHS Foundation Trust,2021,12,07/03/2021,Net Pay-247Time,Net Pay-247Time,Allocate Software Ltd,KCH-07032021fri," 63,570.93 ",Net Pay-247Time
NHS,King's College Hospital NHS Foundation Trust,2021,12,28/02/2021,Net Pay-247Time,Net Pay-247Time,Allocate Software Ltd,KCH-28022021Fri," 77,049.49 ",Net Pay-247Time
NHS,King's College Hospital NHS Foundation Trust,2021,12,21/03/2021,Net Pay-247Time,Net Pay-247Time,Allocate Software Ltd,KCH-21032021fri," 90,676.94 ",Net Pay-247Time
NHS,King's College Hospital NHS Foundation Trust,2021,12,14/03/2021,Net Pay-247Time,Net Pay-247Time,Allocate Software Ltd,KCH-14032021Fri," 132,940.61 ",Net Pay-247Time
NHS,King's College Hospital NHS Foundation Trust,2021,12,23/02/2021,Net Pay-247Time,Net Pay-247Time,Allocate Software Ltd,IN-GB-007279," 148,713.60 ",Net Pay-247Time
NHS,King's College Hospital NHS Foundation Trust,2021,12,28/02/2021,Net Pay-247Time,Net Pay-247Time,Allocate Software Ltd,KCH-28022021," 174,620.90 ",Net Pay-247Time
NHS,King's College Hospital NHS Foundation Trust,2021,12,28/03/2021,Net Pay-247Time,Net Pay-247Time,Allocate Software Ltd,KCH-28032021," 177,393.92 ",Net Pay-247Time
NHS,King's College Hospital NHS Foundation Trust,2021,12,30/03/2021,Net Pay-247Time,Net Pay-247Time,Allocate Software Ltd,Chaps," 186,691.80 ",Net Pay-247Time
NHS,King's College Hospital NHS Foundation Trust,2021,12,03/03/2021,Net Pay-247Time,Net Pay-247Time,Allocate Software Ltd,Chaps," 188,776.08 ",Net Pay-247Time
NHS,King's College Hospital NHS Foundation Trust,2021,12,07/03/2021,Net Pay-247Time,Net Pay-247Time,Allocate Software Ltd,KCH-07032021," 218,673.16 ",Net Pay-247Time
NHS,King's College Hospital NHS Foundation Trust,2021,12,14/03/2021,Net Pay-247Time,Net Pay-247Time,Allocate Software Ltd,KCH-14032021," 219,608.31 ",Net Pay-247Time
NHS,King's College Hospital NHS Foundation Trust,2021,12,21/03/2021,Net Pay-247Time,Net Pay-247Time,Allocate Software Ltd,KCH-21032021," 219,622.10 ",Net Pay-247Time
NHS,King's College Hospital NHS Foundation Trust,2021,12,17/03/2021,Net Pay-247Time,Net Pay-247Time,Allocate Software Ltd,Chaps," 225,940.31 ",Net Pay-247Time
NHS,King's College Hospital NHS Foundation Trust,2021,12,10/03/2021,Net Pay-247Time,Net Pay-247Time,Allocate Software Ltd,Chaps," 228,039.44 ",Net Pay-247Time
NHS,King's College Hospital NHS Foundation Trust,2021,12,24/03/2021,Net Pay-247Time,Net Pay-247Time,Allocate Software Ltd,Chaps," 241,653.30 ",Net Pay-247Time
NHS,King's College Hospital NHS Foundation Trust,2021,12,17/02/2021,Drugs,Stock,Alloga Uk Ltd,SIN103104297," 36,000.00 ",Stock
NHS,King's College Hospital NHS Foundation Trust,2021,12,01/03/2021,Drugs,Stock,Alloga Uk Ltd,SIN103112334," 36,000.00 ",Stock
NHS,King's College Hospital NHS Foundation Trust,2021,12,15/03/2021,Drugs,Stock,Alloga Uk Ltd,SIN103123109," 36,000.00 ",Stock
NHS,King's College Hospital NHS Foundation Trust,2021,12,02/03/2021,Drugs,Stock,Alloga Uk Ltd,SIN103113520," 40,680.00 ",Stock
NHS,King's College Hospital NHS Foundation Trust,2021,12,03/03/2021,Drugs,Stock,Alloga Uk Ltd,SIN103114732," 40,680.00 ",Stock
NHS,King's College Hospital NHS Foundation Trust,2021,12,22/03/2021,Drugs,Stock,Alloga Uk Ltd,SIN103128324," 40,680.00 ",Stock
NHS,King's College Hospital NHS Foundation Trust,2021,12,28/02/2021,External Consultancy Fees,ICT   Management and Security,Answer Digital Ltd,4794," 37,800.00 ",ICT   Management and Security
NHS,King's College Hospital NHS Foundation Trust,2021,12,24/02/2021,Healthcare From Local Authorities,Haematology OPD,Anthony Nolan,632132," 25,282.00 ",Haematology OPD
NHS,King's College Hospital NHS Foundation Trust,2021,12,25/03/2021,Healthcare From Local Authorities,Haematology OPD,Anthony Nolan,633104," 36,618.00 ",Haematology OPD
NHS,King's College Hospital NHS Foundation Trust,2021,12,12/02/2021,Additions - Assets Under Construction,Backlog Maintenance,Artic Building Services Ltd,64547," 29,617.44 ",Backlog Maintenance
NHS,King's College Hospital NHS Foundation Trust,2021,12,01/03/2021,Engineering  Contracts,Facilities Estates or Maintenance,Artic Building Services Ltd,64731," 33,908.90 ",Facilities Estates or Maintenance
NHS,King's College Hospital NHS Foundation Trust,2021,12,23/03/2021,Additions - Assets Under Construction,Upgrade of Ventilation Systems,Artic Building Services Ltd,64989," 70,348.09 ",Upgrade of Ventilation Systems
NHS,King's College Hospital NHS Foundation Trust,2021,12,17/03/2021,Additions - Assets Under Construction,Upgrade of Ventilation Systems,Artic Building Services Ltd,64905," 99,366.92 ",Upgrade of Ventilation Systems
NHS,King's College Hospital NHS Foundation Trust,2021,12,26/02/2021,Additions - Assets Under Construction,Upgrade of Ventilation Systems,Artic Building Services Ltd,64658," 107,300.46 ",Upgrade of Ventilation Systems
NHS,King's College Hospital NHS Foundation Trust,2021,12,01/02/2021,Additions - Assets Under Construction,Upgrade of Ventilation Systems,Artic Building Services Ltd,64448," 136,316.42 ",Upgrade of Ventilation Systems
NHS,King's College Hospital NHS Foundation Trust,2021,12,29/01/2021,Additions - Assets Under Construction,Upgrade of Ventilation Systems,Artic Building Services Ltd,64323," 143,490.97 ",Upgrade of Ventilation Systems
NHS,King's College Hospital NHS Foundation Trust,2021,12,11/02/2021,Additions - Assets Under Construction,Upgrade of Ventilation Systems,Artic Building Services Ltd,64497," 177,680.74 ",Upgrade of Ventilation Systems
NHS,King's College Hospital NHS Foundation Trust,2021,12,25/03/2021,RENT,RENT,ASSURA HC LTD     SYDENHAM KIN001,Chaps," 36,000.00 ",RENT
NHS,King's College Hospital NHS Foundation Trust,2021,12,03/03/2021,Agency Healthcare Scientists,Liver Intensive Therapy Unit,Assured Perfusion Services,594," 41,800.00 ",Assured Perfusion Services
NHS,King's College Hospital NHS Foundation Trust,2021,12,25/03/2021,Consultant,Consultant,Baker Pha Ltd,1120/011," 28,163.20 ",Consultant
NHS,King's College Hospital NHS Foundation Trust,2021,12,29/01/2021,Drugs,Stock,Bayer Plc,824C326921," 41,060.52 ",Stock
NHS,King's College Hospital NHS Foundation Trust,2021,12,25/01/2021,Drugs,Stock,Bayer Plc,824C326128," 45,622.80 ",Stock
NHS,King's College Hospital NHS Foundation Trust,2021,12,12/02/2021,Drugs,Stock,Bayer Plc,824C328973," 68,434.20 ",Stock
NHS,King's College Hospital NHS Foundation Trust,2021,12,30/11/2020,Building  Contracts,Facilities Estates or Maintenance,Bender U K Ltd,41278," 28,332.16 ",Facilities Estates or Maintenance
NHS,King's College Hospital NHS Foundation Trust,2021,12,30/06/2020,Additions - Medical Equipment,Pharmacy Asceptic Unit BC,Bionano Genomics,4478.2-1," 85,749.12 ",Pharmacy Asceptic Unit BC
NHS,King's College Hospital NHS Foundation Trust,2021,12,22/02/2021,Additions - Assets Under Construction,Critical Care Unit (D12),Bmj Architects,13686," 44,400.00 ",Critical Care Unit (D12)
NHS,King's College Hospital NHS Foundation Trust,2021,12,18/03/2021,Additions - Assets Under Construction,Critical Care Unit (D12),Bmj Architects,13728," 44,400.00 ",Critical Care Unit (D12)
NHS,King's College Hospital NHS Foundation Trust,2021,12,22/03/2021,Miscellaneous Expenditure,Technical Finance  and  Financial Operations,Bottomline Technologies Europe Ltd,UKINV-244868," 34,694.40 ",Technical Finance  and  Financial Operations
NHS,King's College Hospital NHS Foundation Trust,2021,12,26/02/2021,Computer Software / License  Fees,Financial Information Team,B-Plan Information Systems,A0003974," 65,454.92 ",Computer Software / License  Fees
NHS,King's College Hospital NHS Foundation Trust,2021,12,18/03/2021,Healthcare From Commercial Sector,Dermatology Services PRUH,Bromley Gp Alliance Ltd,BGPA0996," 45,000.00 ",Dermatology Services PRUH
NHS,King's College Hospital NHS Foundation Trust,2021,12,26/02/2021,Contract : Refuse And Clinical Waste,Waste Services,Bywaters,P166109," 72,994.13 ",Waste Services
NHS,King's College Hospital NHS Foundation Trust,2021,12,24/03/2021,Contract : Refuse And Clinical Waste,Waste Services,Bywaters,P169116," 78,202.37 ",Waste Services
NHS,King's College Hospital NHS Foundation Trust,2021,12,12/02/2021,Advertising and Staff Recruitment,Corporate Human Resources,Capita Business Services Ltd,60040355586," 221,894.65 ",Corporate Human Resources
NHS,King's College Hospital NHS Foundation Trust,2021,12,29/01/2021,Additions - Assets Under Construction,Critical Care Unit (D12),Capita Property And Infrastructure Ltd,6017132484," 77,023.24 ",Critical Care Unit (D12)
NHS,King's College Hospital NHS Foundation Trust,2021,12,26/02/2021,Additions - Assets Under Construction,Critical Care Unit (D12),Capita Property And Infrastructure Ltd,6017133201," 77,023.24 ",Critical Care Unit (D12)
NHS,King's College Hospital NHS Foundation Trust,2021,12,23/12/2020,External Consultancy Fees,Corporate Human Resources,Capsticks Solicitors Llp,484953," 28,680.00 ",Corporate Human Resources
NHS,King's College Hospital NHS Foundation Trust,2021,12,12/03/2021,External Consultancy Fees,Corporate Human Resources,Capsticks Solicitors Llp,492698," 84,160.32 ",Corporate Human Resources
NHS,King's College Hospital NHS Foundation Trust,2021,12,31/03/2021,Water,Water,CASTLE WATER LTD    ,CHAPS," 76,193.04 ",Water
NHS,King's College Hospital NHS Foundation Trust,2021,12,26/03/2021,Recruitment,Recruitment,CAXTON FX LIMITED      CAXTON,CHAPS," 32,160.00 ",Recruitment
NHS,King's College Hospital NHS Foundation Trust,2021,12,29/03/2021,Additions - Information Technology,ICT Edge Switch Replacement (PRUH),Cdw Ltd,PSINV03100859," 32,552.88 ",ICT Edge Switch Replacement (PRUH)
NHS,King's College Hospital NHS Foundation Trust,2021,12,19/02/2021,Additions - Information Technology,Coldharbour Works,Cdw Ltd,PSINV03053175," 36,898.21 ",Coldharbour Works
NHS,King's College Hospital NHS Foundation Trust,2021,12,19/02/2021,Additions - Information Technology,ICT Edge Switch Replacement (PRUH),Cdw Ltd,PSINV03053064," 38,708.23 ",ICT Edge Switch Replacement (PRUH)
NHS,King's College Hospital NHS Foundation Trust,2021,12,26/03/2021,Additions - Information Technology,ICT Edge Switch Replacement (PRUH),Cdw Ltd,PSINV03098774," 76,024.27 ",ICT Edge Switch Replacement (PRUH)
NHS,King's College Hospital NHS Foundation Trust,2021,12,10/03/2021,Additions - Information Technology,ICT Edge Switch Replacement (PRUH),Cdw Ltd,PSINV03076942," 159,032.75 ",ICT Edge Switch Replacement (PRUH)
NHS,King's College Hospital NHS Foundation Trust,2021,12,26/09/2019,Computer Software / License  Fees,Regulatory Performance,Centralsquare Medworxx Solutions Inc,253469," 47,322.23 ",Regulatory Performance
NHS,King's College Hospital NHS Foundation Trust,2021,12,25/03/2021,Additions - Assets Under Construction,Fire Stopping - Ruskin Basement,Checkmate Fire Solutions Ltd,959," 57,378.17 ",Fire Stopping - Ruskin Basement
NHS,King's College Hospital NHS Foundation Trust,2021,12,28/02/2021,Additions - Assets Under Construction,Fire Stopping - Ruskin Basement,Checkmate Fire Solutions Ltd,811," 59,021.83 ",Fire Stopping - Ruskin Basement
NHS,King's College Hospital NHS Foundation Trust,2021,12,25/03/2021,Additions - Assets Under Construction,Main Theatre Fire Compartmention Works,Checkmate Fire Solutions Ltd,962," 109,995.62 ",Main Theatre Fire Compartmention Works
NHS,King's College Hospital NHS Foundation Trust,2021,12,28/02/2021,Additions - Assets Under Construction,Main Theatre Fire Compartmention Works,Checkmate Fire Solutions Ltd,785," 272,339.68 ",Main Theatre Fire Compartmention Works
NHS,King's College Hospital NHS Foundation Trust,2021,12,04/02/2021,Rent,Accomodation,Clarion Housing Association Limited,FTI100001235," 32,250.60 ",Accomodation
NHS,King's College Hospital NHS Foundation Trust,2021,12,18/03/2021,Rent,Accomodation,Clarion Housing Association Limited,FTI100001645," 33,283.21 ",Accomodation
NHS,King's College Hospital NHS Foundation Trust,2021,12,01/01/2021,Telephone Rental and Call Charges,ICT   Telecoms and Switchboard,Colt Technology Services,2.0211E+12," 65,470.21 ",ICT   Telecoms and Switchboard
NHS,King's College Hospital NHS Foundation Trust,2021,12,09/07/2020,Rent,Beckenham LIFT,Community Health Partnerships Ltd,60159395," 34,272.86 ",Beckenham LIFT
NHS,King's College Hospital NHS Foundation Trust,2021,12,31/07/2020,Rent,Beckenham LIFT,Community Health Partnerships Ltd,60162732," 71,619.37 ",Beckenham LIFT
NHS,King's College Hospital NHS Foundation Trust,2021,12,27/01/2021,Rent,Facilities Rates or Rent,Community Health Partnerships Ltd,60185470," 78,452.30 ",Facilities Rates or Rent
NHS,King's College Hospital NHS Foundation Trust,2021,12,27/01/2021,Rent,Facilities Rates or Rent,Community Health Partnerships Ltd,60185486," 78,452.30 ",Facilities Rates or Rent
NHS,King's College Hospital NHS Foundation Trust,2021,12,27/01/2021,Rent,Facilities Rates or Rent,Community Health Partnerships Ltd,60185484," 78,452.30 ",Facilities Rates or Rent
NHS,King's College Hospital NHS Foundation Trust,2021,12,27/01/2021,Rent,Facilities Rates or Rent,Community Health Partnerships Ltd,60185482," 78,452.30 ",Facilities Rates or Rent
NHS,King's College Hospital NHS Foundation Trust,2021,12,27/01/2021,Rent,Facilities Rates or Rent,Community Health Partnerships Ltd,60185480," 78,452.30 ",Facilities Rates or Rent
NHS,King's College Hospital NHS Foundation Trust,2021,12,27/01/2021,Rent,Facilities Rates or Rent,Community Health Partnerships Ltd,60185478," 78,452.30 ",Facilities Rates or Rent
NHS,King's College Hospital NHS Foundation Trust,2021,12,27/01/2021,Rent,Facilities Rates or Rent,Community Health Partnerships Ltd,60185476," 78,452.30 ",Facilities Rates or Rent
NHS,King's College Hospital NHS Foundation Trust,2021,12,27/01/2021,Rent,Facilities Rates or Rent,Community Health Partnerships Ltd,60185474," 78,452.30 ",Facilities Rates or Rent
NHS,King's College Hospital NHS Foundation Trust,2021,12,27/01/2021,Rent,Facilities Rates or Rent,Community Health Partnerships Ltd,60185472," 78,452.30 ",Facilities Rates or Rent
NHS,King's College Hospital NHS Foundation Trust,2021,12,26/02/2021,Rent,Facilities Rates or Rent,Community Health Partnerships Ltd,60189481," 98,009.40 ",Facilities Rates or Rent
NHS,King's College Hospital NHS Foundation Trust,2021,12,26/02/2021,Rent,Beckenham LIFT,Community Health Partnerships Ltd,60189478," 234,831.53 ",Beckenham LIFT
NHS,King's College Hospital NHS Foundation Trust,2021,12,30/11/2020,Rent,Beckenham LIFT,Community Health Partnerships Ltd,60178488," 234,831.53 ",Beckenham LIFT
NHS,King's College Hospital NHS Foundation Trust,2021,12,01/03/2021,Training Expenses,EDT   Education and Training,Connect Health Advisory Ltd,INV-0140," 375,840.00 ",EDT   Education and Training
NHS,King's College Hospital NHS Foundation Trust,2021,12,08/03/2021,Gas,Energy (P.R.U.),Corona Energy Retail 2 Ltd,15920118," 47,790.48 ",Energy (P.R.U.)
NHS,King's College Hospital NHS Foundation Trust,2021,12,08/03/2021,Gas,Energy  and  Utilities Denmark Hill,Corona Energy Retail 2 Ltd,15919885," 220,277.58 ",Energy  and  Utilities Denmark Hill
NHS,King's College Hospital NHS Foundation Trust,2021,12,01/02/2021,Contract : Other External,ICT   Patient Administration System,Csc Computer Sciences Ltd,5278011418," 790,108.80 ",ICT   Patient Administration System
NHS,King's College Hospital NHS Foundation Trust,2021,12,04/03/2021,Drugs,Stock,Csl Behring Uk Ltd,994033438," 28,560.00 ",Stock
NHS,King's College Hospital NHS Foundation Trust,2021,12,02/12/2020,Drugs,Stock,Csl Behring Uk Ltd,994030392," 84,000.00 ",Stock
NHS,King's College Hospital NHS Foundation Trust,2021,12,22/01/2021,Med Surg Eqpt General,Nuclear Medicine,Curium Pharma UK Ltd,RI10079285," 25,674.00 ",Nuclear Medicine
NHS,King's College Hospital NHS Foundation Trust,2021,12,29/01/2021,External Consultancy Fees,Chief Executive,Dco Partners Limited,INV-0147," 28,800.00 ",Consultancy Fees
NHS,King's College Hospital NHS Foundation Trust,2021,12,21/12/2020,External Consultancy Fees,Chief Executive,Dco Partners Limited,INV-0138," 40,800.00 ",Consultancy Fees
NHS,King's College Hospital NHS Foundation Trust,2021,12,28/02/2021,External Consultancy Fees,Chief Executive,Dco Partners Limited,INV-0154," 84,000.00 ",Consultancy Fees
NHS,King's College Hospital NHS Foundation Trust,2021,12,18/03/2021,Computer Hardware Purchases,ICT   Systems Delivery,Dell Corporation Ltd,7402698455," 25,500.00 ",ICT   Systems Delivery
NHS,King's College Hospital NHS Foundation Trust,2021,12,23/03/2021,Computer Hardware Purchases,ICT   Systems Delivery,Dell Corporation Ltd,7402700039," 33,600.00 ",ICT   Systems Delivery
NHS,King's College Hospital NHS Foundation Trust,2021,12,12/03/2021,Computer Hardware Purchases,ICT   Systems Delivery,Dell Corporation Ltd,7402696685," 63,000.00 ",ICT   Systems Delivery
NHS,King's College Hospital NHS Foundation Trust,2021,12,15/02/2021,Additions - Information Technology,ICT Infrastructure: Remote working extension project,Dell Corporation Ltd,7402687787," 88,975.00 ",ICT Infrastructure: Remote working extension project
NHS,King's College Hospital NHS Foundation Trust,2021,12,19/01/2021,Miscellaneous Expenditure,Cardiology,Dendrite Clinical Systems Ltd,P/5633," 31,227.60 ",Cardiology
NHS,King's College Hospital NHS Foundation Trust,2021,12,11/02/2021,Additions - Assets Under Construction,Backlog Maintenance,Dextra Lighting Ltd,916826," 29,671.85 ",Backlog Maintenance
NHS,King's College Hospital NHS Foundation Trust,2021,12,18/03/2021,Additions - Assets Under Construction,Refurbishment of Fisk & Cheere,Dextra Lighting Ltd,918650," 31,383.65 ",Refurbishment of Fisk & Cheere
NHS,King's College Hospital NHS Foundation Trust,2021,12,30/01/2021,Contractual Clinical Services,Renal Administration,Diaverum Facilities Management,350990," 59,923.20 ",Renal Administration
NHS,King's College Hospital NHS Foundation Trust,2021,12,28/02/2021,Contractual Clinical Services,Renal Administration,Diaverum Facilities Management,351048," 59,923.20 ",Renal Administration
NHS,King's College Hospital NHS Foundation Trust,2021,12,28/02/2021,Contractual Clinical Services,Renal Administration,Diaverum Facilities Management,351047," 61,093.87 ",Renal Administration
NHS,King's College Hospital NHS Foundation Trust,2021,12,30/01/2021,Contractual Clinical Services,Renal Administration,Diaverum Facilities Management,350989," 66,585.46 ",Renal Administration
NHS,King's College Hospital NHS Foundation Trust,2021,12,28/02/2021,Contractual Clinical Services,Renal Administration,Diaverum Uk Ltd,154787," 60,393.62 ",Renal Administration
NHS,King's College Hospital NHS Foundation Trust,2021,12,30/01/2021,Healthcare From Commercial Sector,Thamesmead Dialysis Unit,Diaverum Uk Ltd,154746," 65,822.26 ",Thamesmead Dialysis Unit
NHS,King's College Hospital NHS Foundation Trust,2021,12,02/03/2021,Electricity,Energy  and  Utilities Denmark Hill,Edf Energy,9345886," 26,232.47 ",Electricity
NHS,King's College Hospital NHS Foundation Trust,2021,12,02/03/2021,Electricity,Dental Energy  and  Utilities,Edf Energy,93333603," 33,837.81 ",Electricity
NHS,King's College Hospital NHS Foundation Trust,2021,12,02/03/2021,Electricity,PFI Service Payments,Edf Energy,9342502," 60,304.80 ",Electricity
NHS,King's College Hospital NHS Foundation Trust,2021,12,28/02/2021,Packing and Storage,Patient Records DH,Edm Group Ltd,SI329634," 33,722.64 ",Patient Records DH
NHS,King's College Hospital NHS Foundation Trust,2021,12,18/03/2021,Books Journals and Subscriptions,Liver Endoscopy Unit,Endosoft Ltd,1611601," 64,597.20 ",Journals and Subscriptions
NHS,King's College Hospital NHS Foundation Trust,2021,12,19/02/2021,Additions - Assets Under Construction,Pharmacy COVID Aseptic Unit,Envair Projects Limited,1227," 46,985.96 ",Pharmacy COVID Aseptic Unit
NHS,King's College Hospital NHS Foundation Trust,2021,12,25/02/2021,Healthcare From Foundation Trusts,Ophthalmology,Epsom And St Helier University Hospitals NHS Trust,19772731," 800,000.00 ",Ophthalmology
NHS,King's College Hospital NHS Foundation Trust,2021,12,23/03/2021,Additions - Assets Under Construction,Modernising Medicine (DH UEC),Essentia Trading Ltd,54789," 92,132.47 ",Modernising Medicine (DH UEC)
NHS,King's College Hospital NHS Foundation Trust,2021,12,03/03/2021,Additions - Information Technology,ICT Infrastructure: Remote working extension project,Exponential-e Limited,563650," 123,300.00 ",ICT Infrastructure: Remote working extension project
NHS,King's College Hospital NHS Foundation Trust,2021,12,28/02/2021,Other Transport Costs,Patient Transport,Falck UK Ambulance Services Limited,26469," 31,680.00 ",Transport Costs
NHS,King's College Hospital NHS Foundation Trust,2021,12,28/02/2021,Other Transport Costs,Patient Transport,Falck UK Ambulance Services Limited,SIN004281," 51,600.00 ",Transport Costs
NHS,King's College Hospital NHS Foundation Trust,2021,12,28/02/2021,Other Transport Costs,Patient Transport,Falck UK Ambulance Services Limited,SIN004268," 446,456.65 ",Transport Costs
NHS,King's College Hospital NHS Foundation Trust,2021,12,26/02/2021,Additions - Assets Under Construction,Coldharbour Works,Frederick Gibberd Partnership,6820," 30,375.00 ",Coldharbour Works
NHS,King's College Hospital NHS Foundation Trust,2021,12,15/02/2021,Drugs,Stock,Gilead Sciences Ltd,4410200400," 35,504.78 ",Stock
NHS,King's College Hospital NHS Foundation Trust,2021,12,17/02/2021,Drugs,Stock,Gilead Sciences Ltd,4410200687," 35,504.78 ",Stock
NHS,King's College Hospital NHS Foundation Trust,2021,12,01/03/2021,Drugs,Stock,Gilead Sciences Ltd,4410201325," 35,504.78 ",Stock
NHS,King's College Hospital NHS Foundation Trust,2021,12,12/01/2021,Drugs,Stock,Gilead Sciences Ltd,4410198365," 35,504.78 ",Stock
NHS,King's College Hospital NHS Foundation Trust,2021,12,15/01/2021,Drugs,Stock,Gilead Sciences Ltd,4410198664," 35,504.78 ",Stock
NHS,King's College Hospital NHS Foundation Trust,2021,12,19/01/2021,Drugs,Stock,Gilead Sciences Ltd,4410198843," 35,504.78 ",Stock
NHS,King's College Hospital NHS Foundation Trust,2021,12,22/01/2021,Drugs,Stock,Gilead Sciences Ltd,4410199158," 35,504.78 ",Stock
NHS,King's College Hospital NHS Foundation Trust,2021,12,09/02/2021,Drugs,Stock,Gilead Sciences Ltd,4410200114," 36,375.98 ",Stock
NHS,King's College Hospital NHS Foundation Trust,2021,12,28/01/2021,Drugs,Stock,Gilead Sciences Ltd,4410199438," 71,009.56 ",Stock
NHS,King's College Hospital NHS Foundation Trust,2021,12,23/12/2020,Drugs,Stock,Gilead Sciences Ltd,4410197729," 224,360.80 ",Stock
NHS,King's College Hospital NHS Foundation Trust,2021,12,12/02/2021,Drugs,Stock,Gilead Sciences Ltd,4410200362," 224,360.80 ",Stock
NHS,King's College Hospital NHS Foundation Trust,2021,12,25/02/2021,Drugs,Stock,Gilead Sciences Ltd,4410201223," 224,360.80 ",Stock
NHS,King's College Hospital NHS Foundation Trust,2021,12,26/11/2020,Drugs,Stock,Gilead Sciences Ltd,4410196024," 224,360.80 ",Stock
NHS,King's College Hospital NHS Foundation Trust,2021,12,09/02/2021,Drugs,Stock,Gilead Sciences Ltd,4410200133," 280,451.00 ",Stock
NHS,King's College Hospital NHS Foundation Trust,2021,12,16/02/2021,Drugs,Stock,Gilead Sciences Ltd,4410200552," 280,451.00 ",Stock
NHS,King's College Hospital NHS Foundation Trust,2021,12,26/02/2021,Hospital Practitioner,Child Health Central,Great Ormond St Hosp For Children,X0264077," 49,247.47 ",Child Health Central
NHS,King's College Hospital NHS Foundation Trust,2021,12,15/03/2021,Contractual Clinical Services,KHP Institute of Haematology,Guys And St Thomas NHS Foundation Trust,3302470," 31,999.83 ",KHP Institute of Haematology
NHS,King's College Hospital NHS Foundation Trust,2021,12,17/02/2021,Consultant,Neurology,Guys And St Thomas NHS Foundation Trust,3300969," 43,568.80 ",Pharmacy
NHS,King's College Hospital NHS Foundation Trust,2021,12,15/03/2021,Admin & Clerical Bank Staff (Non Medical Non Clinical),Pharmacy,Guys And St Thomas NHS Foundation Trust,3302718," 47,457.00 ",Pharmacy
NHS,King's College Hospital NHS Foundation Trust,2021,12,22/02/2021,Agency Healthcare Scientists,Pharmacy,Guys And St Thomas NHS Foundation Trust,3301111," 50,016.00 ",Pharmacy
NHS,King's College Hospital NHS Foundation Trust,2021,12,11/03/2021,Healthcare From Foundation Trusts,Integrated Respiratory Team,Guys And St Thomas NHS Foundation Trust,3302156," 64,047.36 ",Integrated Respiratory Team
NHS,King's College Hospital NHS Foundation Trust,2021,12,22/02/2021,Healthcare From Foundation Trusts,KHP Child Health Institute,Guys And St Thomas NHS Foundation Trust,3301229," 67,913.00 ",KHP Child Health Institute
NHS,King's College Hospital NHS Foundation Trust,2021,12,22/02/2021,Healthcare From Foundation Trusts,KHP Diabetes Institute,Guys And St Thomas NHS Foundation Trust,3301228," 106,978.00 ",KHP Diabetes Institute
NHS,King's College Hospital NHS Foundation Trust,2021,12,10/03/2021,Consultant,KHP Institute of Haematology,Guys And St Thomas NHS Foundation Trust,3302315," 108,000.00 ",KHP Diabetes Institute
NHS,King's College Hospital NHS Foundation Trust,2021,12,16/03/2021,External Consultancy Fees,KHP Institute of Haematology,Guys And St Thomas NHS Foundation Trust,3302801," 128,972.00 ",KHP Institute of Haematology
NHS,King's College Hospital NHS Foundation Trust,2021,12,10/03/2021,Healthcare From Foundation Trusts,PRUH Child Health Mat Leave,Guys And St Thomas NHS Foundation Trust,3302415," 129,710.00 ",PRUH Child Health Mat Leave
NHS,King's College Hospital NHS Foundation Trust,2021,12,10/03/2021,Healthcare From Foundation Trusts,Womens Central,Guys And St Thomas NHS Foundation Trust,3302563," 132,265.00 ",Womens Central
NHS,King's College Hospital NHS Foundation Trust,2021,12,16/03/2021,Healthcare From Foundation Trusts,Breast Screening Admin,Guys And St Thomas NHS Foundation Trust,3302650," 170,000.00 ",Breast Screening Admin
NHS,King's College Hospital NHS Foundation Trust,2021,12,25/02/2021,B8D Admin & Clerical (Non Medical Non Clinical),CEF Senior Management Team,Guys And St Thomas NHS Foundation Trust,3301614," 291,951.68 ",CEF Senior Management Team
NHS,King's College Hospital NHS Foundation Trust,2021,12,16/03/2021,External Consultancy Fees,KHP Institute of Haematology,Guys And St Thomas NHS Foundation Trust,3302658," 311,111.00 ",KHP Institute of Haematology
NHS,King's College Hospital NHS Foundation Trust,2021,12,16/03/2021,Consultant,Cancer and Medical Oncology,Guys And St Thomas NHS Foundation Trust,3302649," 351,000.00 ",PRUH Child Health Mat Leave
NHS,King's College Hospital NHS Foundation Trust,2021,12,16/03/2021,Consultant,Cancer and Medical Oncology,Guys And St Thomas NHS Foundation Trust,3302646," 376,410.00 ",Pharmacy
NHS,King's College Hospital NHS Foundation Trust,2021,12,04/03/2021,Consultant,Plastic Surgery,Guys And St Thomas NHS Foundation Trust,3302093," 524,404.00 ",Integrated Respiratory Team
NHS,King's College Hospital NHS Foundation Trust,2021,12,20/03/2021,Healthcare From Commercial Sector,Private Sector Work Networked,Hca International,KINGS 92 HSC," 190,282.75 ",Private Sector Work Networked
NHS,King's College Hospital NHS Foundation Trust,2021,12,18/03/2021,Additions - Information Technology,HSLI Funding EPR Digital deployments,Health Systems Support Ltd,2020-44," 72,000.00 ",HSLI Funding EPR Digital deployments
NHS,King's College Hospital NHS Foundation Trust,2021,12,18/03/2021,Fm Computer Contracts,ICT   Management and Security,Health Systems Support Ltd,2020-45," 72,000.00 ",ICT   Management and Security
NHS,King's College Hospital NHS Foundation Trust,2021,12,18/03/2021,Additions - Information Technology,EPR Upgrade (F22),Health Systems Support Ltd,2020-46," 72,000.00 ",EPR Upgrade (F22)
NHS,King's College Hospital NHS Foundation Trust,2021,12,18/03/2021,Additions - Information Technology,EPR Upgrade (F22),Health Systems Support Ltd,2020-43," 84,000.00 ",EPR Upgrade (F22)
NHS,King's College Hospital NHS Foundation Trust,2021,12,18/01/2021,Drugs,Stock,Healthcare At Home Ltd,INUK-000310224," 25,200.00 ",Stock
NHS,King's College Hospital NHS Foundation Trust,2021,12,15/02/2021,Drugs,Stock,Healthcare At Home Ltd,INUK-000401972," 25,200.00 ",Stock
NHS,King's College Hospital NHS Foundation Trust,2021,12,31/08/2020,Drugs,Stock,Healthcare At Home Ltd,OP/9503352A," 31,500.00 ",Stock
NHS,King's College Hospital NHS Foundation Trust,2021,12,26/02/2021,Drugs,Stock,Healthcare At Home Ltd,INUK-000442650," 31,504.12 ",Stock
NHS,King's College Hospital NHS Foundation Trust,2021,12,20/01/2021,Drugs,Stock,Healthcare At Home Ltd,INUK-000322861," 37,800.00 ",Stock
NHS,King's College Hospital NHS Foundation Trust,2021,12,02/10/2020,Drugs,Stock,Healthcare At Home Ltd,OP/9606360," 37,950.00 ",Stock
NHS,King's College Hospital NHS Foundation Trust,2021,12,26/01/2021,Drugs,Stock,Healthcare At Home Ltd,INUK-000339640," 50,400.00 ",Stock
NHS,King's College Hospital NHS Foundation Trust,2021,12,01/02/2021,Computer Hardware Purchases,PRUH  and  South sites operational team,Healthcare Communications Uk Ltd,INVHEA00000899," 25,393.36 ",PRUH  and  South sites operational team
NHS,King's College Hospital NHS Foundation Trust,2021,12,01/03/2021,Computer Hardware Purchases,PRUH  and  South sites operational team,Healthcare Communications Uk Ltd,INVHEA00000900," 25,393.36 ",PRUH  and  South sites operational team
NHS,King's College Hospital NHS Foundation Trust,2021,12,31/12/2020,X-Ray Equipment : Purchases,Endoscopy RTT,Healthshare Limited,KINGSNHSENDOS004," 37,564.74 ",Endoscopy RTT
NHS,King's College Hospital NHS Foundation Trust,2021,12,25/02/2021,Computer Software / License  Fees,Liver Hepatitis Service,Hepian Ltd,1002," 30,000.00 ",Liver Hepatitis Service
NHS,King's College Hospital NHS Foundation Trust,2021,12,22/01/2021,Additions - Assets Under Construction,CT 1 Replacement Enabling Works,Heritage Surveys Ltd,1684," 36,545.00 ",CT 1 Replacement Enabling Works
NHS,King's College Hospital NHS Foundation Trust,2021,12,11/03/2021,Advertising and Staff Recruitment,Central Schemes,Iconica Ltd,KCH-ICONICA-005," 129,536.00 ",Central Schemes
NHS,King's College Hospital NHS Foundation Trust,2021,12,19/02/2021,Additions - Information Technology,EPR Upgrade (F22),Ideal Health Consultants Ltd,6490," 31,200.00 ",EPR Upgrade (F22)
NHS,King's College Hospital NHS Foundation Trust,2021,12,19/02/2021,Additions - Information Technology,EPR Upgrade (F22),Ideal Health Consultants Ltd,6489," 54,000.00 ",EPR Upgrade (F22)
NHS,King's College Hospital NHS Foundation Trust,2021,12,25/03/2021,External Consultancy Fees,Acute Provider Collaboration,Ideal Health Consultants Ltd,6509," 55,200.00 ",Acute Provider Collaboration
NHS,King's College Hospital NHS Foundation Trust,2021,12,19/02/2021,Additions - Information Technology,EPR Upgrade (F22),Ideal Health Consultants Ltd,6491," 72,000.00 ",EPR Upgrade (F22)
NHS,King's College Hospital NHS Foundation Trust,2021,12,19/02/2021,Additions - Information Technology,EPR Upgrade (F22),Ideal Health Consultants Ltd,6488," 84,000.00 ",EPR Upgrade (F22)
NHS,King's College Hospital NHS Foundation Trust,2021,12,05/03/2021,Additions - Information Technology,HSLI Funding EPR Digital deployments,Ideal Health Consultants Ltd,6500," 108,000.00 ",HSLI Funding EPR Digital deployments
NHS,King's College Hospital NHS Foundation Trust,2021,12,25/03/2021,Additions - Information Technology,EPR Upgrade (F22),Ideal Health Consultants Ltd,6507," 108,000.00 ",EPR Upgrade (F22)
NHS,King's College Hospital NHS Foundation Trust,2021,12,26/03/2021,Additions - Information Technology,HSLI Funding EPR Digital deployments,Ideal Health Consultants Ltd,6510," 132,000.00 ",HSLI Funding EPR Digital deployments
NHS,King's College Hospital NHS Foundation Trust,2021,12,25/03/2021,Additions - Information Technology,EPR Upgrade (F22),Ideal Health Consultants Ltd,6508," 132,000.00 ",EPR Upgrade (F22)
NHS,King's College Hospital NHS Foundation Trust,2021,12,10/03/2021,Additions - Information Technology,HSLI Funding EPR Digital deployments,Ideal Health Consultants Ltd,6502," 204,000.00 ",HSLI Funding EPR Digital deployments
NHS,King's College Hospital NHS Foundation Trust,2021,12,05/03/2021,Additions - Information Technology,HSLI Funding EPR Digital deployments,Ideal Health Consultants Ltd,6499," 228,000.00 ",HSLI Funding EPR Digital deployments
NHS,King's College Hospital NHS Foundation Trust,2021,12,27/01/2021,Computer Maintenance,ICT   Network,Insight Direct (Uk) Ltd,5154490," 25,938.83 ",ICT   Network
NHS,King's College Hospital NHS Foundation Trust,2021,12,24/03/2021,Additions - Information Technology,Computers in Theatres - PRUH and South sites,Insight Direct (Uk) Ltd,5232373," 78,204.19 ",Computers in Theatres - PRUH and South sites
NHS,King's College Hospital NHS Foundation Trust,2021,12,26/02/2021,Gross Book Value Brought Forward - Information Technology,ICT Infrastructure: Remote working extension project,Insight Direct (Uk) Ltd,5197441," 79,576.56 ",ICT Infrastructure: Remote working extension project
NHS,King's College Hospital NHS Foundation Trust,2021,12,03/03/2021,Computer Maintenance,ICT   Network,Insight Direct (Uk) Ltd,6203498," 82,668.77 ",ICT   Network
NHS,King's College Hospital NHS Foundation Trust,2021,12,24/03/2021,Additions - Information Technology,ICT Infrastructure - Data centre / Firewall deployment,Insight Direct (Uk) Ltd,5233513," 175,482.90 ",ICT Infrastructure - Data centre / Firewall deployment
NHS,King's College Hospital NHS Foundation Trust,2021,12,19/01/2021,Additions - Information Technology,ICT Infrastructure: Remote working extension project,Insight Direct (Uk) Ltd,5142570," 353,808.00 ",ICT Infrastructure: Remote working extension project
NHS,King's College Hospital NHS Foundation Trust,2021,12,30/12/2020,Additions - Information Technology,IT - McAfee Licence (3 years),Insight Direct (Uk) Ltd,5119774," 475,200.00 ",IT - McAfee Licence (3 years)
NHS,King's College Hospital NHS Foundation Trust,2021,12,26/02/2021,Med Surg Eqpt General,Diabetes,Insulet International Ltd,71012545," 44,928.36 ",Diabetes
NHS,King's College Hospital NHS Foundation Trust,2021,12,10/02/2021,Computer Software / License  Fees,PRUH  and  South sites operational team,Intouch With Health Ltd,INVITH00117," 28,080.00 ",PRUH  and  South sites operational team
NHS,King's College Hospital NHS Foundation Trust,2021,12,28/02/2021,Packing and Storage,Patient Records DH,Iron Mountain (UK) PLC,XM99814," 52,974.34 ",Patient Records DH
NHS,King's College Hospital NHS Foundation Trust,2021,12,18/03/2021,Additions - Assets Under Construction,Upgrade of Ventilation Systems,J C Watson Mechanical Ltd,3232," 158,037.44 ",Upgrade of Ventilation Systems
NHS,King's College Hospital NHS Foundation Trust,2021,12,19/03/2021,Additions - Assets Under Construction,Backlog Maintenance,J F Jones Builders Ltd,JJ/7059," 25,377.60 ",Backlog Maintenance
NHS,King's College Hospital NHS Foundation Trust,2021,12,16/03/2021,Additions - Assets Under Construction,Upgrade of Oxygen Supply,J F Jones Builders Ltd,JJ/7025," 27,871.80 ",Upgrade of Oxygen Supply
NHS,King's College Hospital NHS Foundation Trust,2021,12,26/02/2021,Additions - Assets Under Construction,Refurbishment of Matthew Whiting Ward,J F Jones Builders Ltd,JJ/6975," 30,187.20 ",Refurbishment of Matthew Whiting Ward
NHS,King's College Hospital NHS Foundation Trust,2021,12,17/02/2021,Building  Contracts,Facilities Estates or Maintenance,J F Jones Builders Ltd,JJ/6953," 35,261.93 ",Facilities Estates or Maintenance
NHS,King's College Hospital NHS Foundation Trust,2021,12,22/01/2021,Building  Contracts,Facilities Estates or Maintenance,J F Jones Builders Ltd,JJ/6884," 36,071.10 ",Facilities Estates or Maintenance
NHS,King's College Hospital NHS Foundation Trust,2021,12,09/02/2021,Additions - Assets Under Construction,Static MRI (Enabling works),J F Jones Builders Ltd,JJ/6934," 58,298.40 ",Static MRI (Enabling works)
NHS,King's College Hospital NHS Foundation Trust,2021,12,01/03/2021,Additions - Assets Under Construction,Faraday Roof,J F Jones Builders Ltd,JJ/6985," 59,332.44 ",Faraday Roof
NHS,King's College Hospital NHS Foundation Trust,2021,12,18/02/2021,Additions - Assets Under Construction,Replacement of Fire Extinguishers,J F Jones Builders Ltd,JJ/6955," 61,966.92 ",Replacement of Fire Extinguishers
NHS,King's College Hospital NHS Foundation Trust,2021,12,01/03/2021,Miscellaneous Expenditure,Facilities Estates or Maintenance,J F Jones Builders Ltd,JJ/6984," 67,914.00 ",Facilities Estates or Maintenance
NHS,King's College Hospital NHS Foundation Trust,2021,12,30/03/2021,Miscellaneous Expenditure,Facilities Estates or Maintenance,J F Jones Builders Ltd,JJ/7102," 70,182.00 ",Facilities Estates or Maintenance
NHS,King's College Hospital NHS Foundation Trust,2021,12,16/03/2021,Additions - Assets Under Construction,Cardiovascular (DH UEC),J F Jones Builders Ltd,JJ/7032," 77,014.92 ",Cardiovascular (DH UEC)
NHS,King's College Hospital NHS Foundation Trust,2021,12,03/03/2021,Additions - Assets Under Construction,Cardiovascular (DH UEC),J F Jones Builders Ltd,JJ/6991," 80,598.00 ",Cardiovascular (DH UEC)
NHS,King's College Hospital NHS Foundation Trust,2021,12,16/03/2021,Additions - Assets Under Construction,Cardiovascular (DH UEC),J F Jones Builders Ltd,JJ-7033," 84,967.20 ",Cardiovascular (DH UEC)
NHS,King's College Hospital NHS Foundation Trust,2021,12,03/03/2021,Additions - Assets Under Construction,Vaccination Centre within KCL WEC,J F Jones Builders Ltd,JJ/6993," 90,000.00 ",Vaccination Centre within KCL WEC
NHS,King's College Hospital NHS Foundation Trust,2021,12,19/02/2021,Drugs,Stock,Janssen-Cilag Ltd,930728750," 37,739.52 ",Stock
NHS,King's College Hospital NHS Foundation Trust,2021,12,10/03/2021,Drugs,Stock,Janssen-Cilag Ltd,930733730," 37,761.36 ",Stock
NHS,King's College Hospital NHS Foundation Trust,2021,12,15/12/2020,Drugs,Stock,Jazz Pharmaceuticals,90014816," 39,030.12 ",Stock
NHS,King's College Hospital NHS Foundation Trust,2021,12,18/02/2021,Additions - Assets Under Construction,Upgrade of Oxygen Supply,John Graham Construction Ltd,913854," 27,439.26 ",Upgrade of Oxygen Supply
NHS,King's College Hospital NHS Foundation Trust,2021,12,18/03/2021,Additions - Assets Under Construction,Upgrade of Oxygen Supply,John Graham Construction Ltd,914056," 30,175.68 ",Upgrade of Oxygen Supply
NHS,King's College Hospital NHS Foundation Trust,2021,12,18/03/2021,Additions - Assets Under Construction,Diabetic Foot Clinic Refurbishment,John Graham Construction Ltd,914055," 134,032.03 ",Diabetic Foot Clinic Refurbishment
NHS,King's College Hospital NHS Foundation Trust,2021,12,18/02/2021,Additions - Assets Under Construction,P22 scheme (I71),John Graham Construction Ltd,315816," 680,466.31 ",P22 scheme (I71)
NHS,King's College Hospital NHS Foundation Trust,2021,12,18/02/2021,Additions - Assets Under Construction,Diabetic Foot Clinic Refurbishment,John Graham Construction Ltd,913853," 1,461,244.81 ",Diabetic Foot Clinic Refurbishment
NHS,King's College Hospital NHS Foundation Trust,2021,12,31/01/2021,Additions - Assets Under Construction,Upgrade of Oxygen Supply,K&H Medical Ltd,19669," 32,907.60 ",Upgrade of Oxygen Supply
NHS,King's College Hospital NHS Foundation Trust,2021,12,28/02/2021,Additions - Assets Under Construction,Upgrade of Oxygen Supply,K&H Medical Ltd,19686," 149,684.88 ",Upgrade of Oxygen Supply
NHS,King's College Hospital NHS Foundation Trust,2021,12,16/03/2021,Additions - Assets Under Construction,Upgrade of Oxygen Supply,K&H Medical Ltd,13944," 207,278.64 ",Upgrade of Oxygen Supply
NHS,King's College Hospital NHS Foundation Trust,2021,12,24/03/2017,External Consultancy Fees,Trustwide Expenses,Kch Commercial Services Ltd,689," 48,000.00 ",Trustwide Expenses
NHS,King's College Hospital NHS Foundation Trust,2021,12,31/03/2019,External Consultancy Fees,Trustwide Expenses,Kch Management Ltd,2062," 25,218.00 ",Trustwide Expenses
NHS,King's College Hospital NHS Foundation Trust,2021,12,29/01/2021,External Consultancy Fees,Corporate Human Resources,Kch Management Ltd,2583," 26,000.00 ",Corporate Human Resources
NHS,King's College Hospital NHS Foundation Trust,2021,12,22/12/2020,External Consultancy Fees,Corporate Human Resources,Kch Management Ltd,2522," 26,303.00 ",Corporate Human Resources
NHS,King's College Hospital NHS Foundation Trust,2021,12,30/11/2020,Advertising and Staff Recruitment,Commercial Services Recharges,Kch Management Ltd,2515," 27,216.00 ",Commercial Services Recharges
NHS,King's College Hospital NHS Foundation Trust,2021,12,22/01/2021,Advertising and Staff Recruitment,Commercial Services Recharges,Kch Management Ltd,2574," 27,410.00 ",Commercial Services Recharges
NHS,King's College Hospital NHS Foundation Trust,2021,12,29/05/2020,External Consultancy Fees,Corporate Human Resources,Kch Management Ltd,2438," 29,393.46 ",Corporate Human Resources
NHS,King's College Hospital NHS Foundation Trust,2021,12,05/02/2021,External Consultancy Fees,Corporate Human Resources,Kch Management Ltd,2592," 30,315.00 ",Corporate Human Resources
NHS,King's College Hospital NHS Foundation Trust,2021,12,19/02/2021,External Consultancy Fees,Corporate Human Resources,Kch Management Ltd,2451," 35,706.94 ",Corporate Human Resources
NHS,King's College Hospital NHS Foundation Trust,2021,12,23/12/2020,External Consultancy Fees,Corporate Human Resources,Kch Management Ltd,2527," 37,022.40 ",Corporate Human Resources
NHS,King's College Hospital NHS Foundation Trust,2021,12,23/12/2020,External Consultancy Fees,Corporate Human Resources,Kch Management Ltd,2557," 40,850.00 ",Corporate Human Resources
NHS,King's College Hospital NHS Foundation Trust,2021,12,30/04/2019,External Consultancy Fees,Corporate Human Resources,Kch Management Ltd,2073," 44,799.93 ",Corporate Human Resources
NHS,King's College Hospital NHS Foundation Trust,2021,12,20/02/2020,External Consultancy Fees,Corporate Human Resources,Kch Management Ltd,2450," 47,446.61 ",Corporate Human Resources
NHS,King's College Hospital NHS Foundation Trust,2021,12,30/10/2020,External Consultancy Fees,Corporate Human Resources,Kch Management Ltd,2502," 50,073.00 ",Corporate Human Resources
NHS,King's College Hospital NHS Foundation Trust,2021,12,23/12/2020,External Consultancy Fees,Corporate Human Resources,Kch Management Ltd,2528," 52,002.00 ",Corporate Human Resources
NHS,King's College Hospital NHS Foundation Trust,2021,12,22/02/2021,Advertising and Staff Recruitment,Commercial Services Recharges,Kch Management Ltd,2615," 54,468.00 ",Commercial Services Recharges
NHS,King's College Hospital NHS Foundation Trust,2021,12,31/10/2019,External Consultancy Fees,Corporate Human Resources,Kch Management Ltd,2271," 63,894.02 ",Corporate Human Resources
NHS,King's College Hospital NHS Foundation Trust,2021,12,23/12/2020,Advertising and Staff Recruitment,Commercial Services Recharges,Kch Management Ltd,2551," 66,480.00 ",Commercial Services Recharges
NHS,King's College Hospital NHS Foundation Trust,2021,12,20/03/2020,External Consultancy Fees,Corporate Human Resources,Kch Management Ltd,2382," 82,074.00 ",Corporate Human Resources
NHS,King's College Hospital NHS Foundation Trust,2021,12,23/12/2020,External Consultancy Fees,Corporate Human Resources,Kch Management Ltd,2526," 87,528.00 ",Corporate Human Resources
NHS,King's College Hospital NHS Foundation Trust,2021,12,19/02/2021,External Consultancy Fees,Corporate Human Resources,Kch Management Ltd,2611," 87,984.00 ",Corporate Human Resources
NHS,King's College Hospital NHS Foundation Trust,2021,12,23/12/2020,External Consultancy Fees,Corporate Human Resources,Kch Management Ltd,2552," 92,898.00 ",Corporate Human Resources
NHS,King's College Hospital NHS Foundation Trust,2021,12,22/02/2021,External Consultancy Fees,Corporate Human Resources,Kch Management Ltd,2614," 104,718.00 ",Corporate Human Resources
NHS,King's College Hospital NHS Foundation Trust,2021,12,25/03/2021,RENT,RENT,KINGS COLLEGE HOSP     BENGEWORTH ROAD,Chaps," 58,750.00 ",RENT
NHS,King's College Hospital NHS Foundation Trust,2021,12,17/03/2021,Consultant,KHP Neurosciences Institute,Kings College London,TS50032176," 25,695.53 ",LDA HESL Training
NHS,King's College Hospital NHS Foundation Trust,2021,12,26/02/2021,SLR Pay Rechage: Received,General Surgery Medical Secretaries,Kings College London,RS50031616," 26,279.03 ",General Surgery Medical Secretaries
NHS,King's College Hospital NHS Foundation Trust,2021,12,09/02/2021,Miscellaneous Expenditure,NIHR BOPP Grant,Kings College London,SH50030869," 26,367.76 ",NIHR BOPP Grant
NHS,King's College Hospital NHS Foundation Trust,2021,12,08/02/2021,External Consultancy Fees,ARC PH  and  MM   Smoking,Kings College London,SH50030856," 26,619.51 ",ARC PH  and  MM   Smoking
NHS,King's College Hospital NHS Foundation Trust,2021,12,02/03/2021,Admin & Clerical (Non Medical Non Clinical),CRN HIV,Kings College London,TS50031743," 27,006.60 ",Admin & Clerical 
NHS,King's College Hospital NHS Foundation Trust,2021,12,15/02/2021,Agency Admin & Clerical (Non Medical Non Clinical),Chief Executive,Kings College London,RS50031646," 28,142.32 ",Agency Admin & Clerical 
NHS,King's College Hospital NHS Foundation Trust,2021,12,05/03/2021,Rent,Facilities Rates or Rent,Kings College London,TS50031854," 28,749.00 ",Facilities Rates or Rent
NHS,King's College Hospital NHS Foundation Trust,2021,12,26/02/2021,Consultant,General Surgery I,Kings College London,RS50031614," 28,775.73 ",Commercial R and D
NHS,King's College Hospital NHS Foundation Trust,2021,12,17/03/2021,Contractual Clinical Services,KHP Institute of Haematology,Kings College London,TS50032206," 33,894.89 ",KHP Institute of Haematology
NHS,King's College Hospital NHS Foundation Trust,2021,12,08/02/2021,External Consultancy Fees,ARC PH  and  MM   Public Health,Kings College London,SH50030857," 34,942.59 ",ARC PH  and  MM   Public Health
NHS,King's College Hospital NHS Foundation Trust,2021,12,26/02/2021,Consultant,Child Health Medical General,Kings College London,RS50031620," 46,659.81 ",ACU Cross Account
NHS,King's College Hospital NHS Foundation Trust,2021,12,08/02/2021,External Consultancy Fees,ARC Core,Kings College London,SH50030850," 57,778.23 ",ARC Core
NHS,King's College Hospital NHS Foundation Trust,2021,12,08/02/2021,External Consultancy Fees,ARC Palliative Care  and  End of Life,Kings College London,SH50030820," 60,785.30 ",ARC Palliative Care  and  End of Life
NHS,King's College Hospital NHS Foundation Trust,2021,12,24/03/2021,External Consultancy Fees,RCF Central,Kings College London,SH50032437," 101,498.00 ",RCF Central
NHS,King's College Hospital NHS Foundation Trust,2021,12,23/03/2021,Research And Development,Commercial R and D,Kings College London,CT50032406," 360,000.00 ",Commercial R and D
NHS,King's College Hospital NHS Foundation Trust,2021,12,12/03/2021,Course Fees,LDA HESL Training,Kings College London,TS50032059," 373,885.00 ",LDA HESL Training
NHS,King's College Hospital NHS Foundation Trust,2021,12,30/03/2021,Salary recharges,Salary recharges,KINGS COLLEGE LONDON       ,Chaps," 505,363.08 ",Salary recharges
NHS,King's College Hospital NHS Foundation Trust,2021,12,01/03/2021,Healthcare From Foundation Trusts,ACU Cross Account,King's Fertility Ltd,KFL244," 168,106.00 ",ACU Cross Account
NHS,King's College Hospital NHS Foundation Trust,2021,12,01/03/2021,Healthcare From Commercial Sector,IFT,King's Interventional Facilities Management LLP,FINV-000886," 30,919.20 ",IFT
NHS,King's College Hospital NHS Foundation Trust,2021,12,01/03/2021,Healthcare From Commercial Sector,IFT,King's Interventional Facilities Management LLP,FINV-000888," 114,510.30 ",IFT
NHS,King's College Hospital NHS Foundation Trust,2021,12,30/11/2020,Healthcare From Commercial Sector,IFT,King's Interventional Facilities Management LLP,FINV-000717," 114,510.30 ",IFT
NHS,King's College Hospital NHS Foundation Trust,2021,12,01/03/2021,Healthcare From Commercial Sector,IFT,King's Interventional Facilities Management LLP,FINV-000881," 1,737,480.94 ",IFT
NHS,King's College Hospital NHS Foundation Trust,2021,12,01/03/2021,Contract : Other External,KIFM Pharmacy Outpatient,King's Interventional Facilities Management LLP,FINV-000883," 1,939,148.00 ",KIFM Pharmacy Outpatient
NHS,King's College Hospital NHS Foundation Trust,2021,12,01/09/2020,Contract : Other External,KIFM Pharmacy Outpatient,King's Interventional Facilities Management LLP,FINV-000648," 1,939,200.00 ",KIFM Pharmacy Outpatient
NHS,King's College Hospital NHS Foundation Trust,2021,12,01/03/2021,Healthcare From Commercial Sector,IFT,King's Interventional Facilities Management LLP,FINV-000879," 2,580,962.60 ",IFT
NHS,King's College Hospital NHS Foundation Trust,2021,12,01/03/2021,Healthcare From Commercial Sector,IFT,King's Interventional Facilities Management LLP,FINV-000880," 4,043,925.64 ",IFT
NHS,King's College Hospital NHS Foundation Trust,2021,12,01/03/2021,Healthcare From Commercial Sector,IFT,King's Interventional Facilities Management LLP,FINV-000882," 4,344,515.09 ",IFT
NHS,King's College Hospital NHS Foundation Trust,2021,12,28/02/2021,Agency Admin & Clerical (Non Medical Non Clinical),KCH Security,Knight Security Ltd,13021," 59,020.80 ",KCH Security
NHS,King's College Hospital NHS Foundation Trust,2021,12,26/08/2020,Miscellaneous Expenditure,LDA HESL Training,Laerdal Medical Ltd,2020/UK11637," 39,726.16 ",LDA HESL Training
NHS,King's College Hospital NHS Foundation Trust,2021,12,19/03/2021,Miscellaneous Expenditure,COM PROSPECTS Michael Michell,Leeds Teaching Hospitals NHS Trust,1410171445," 26,411.19 ",COM PROSPECTS Michael Michell
NHS,King's College Hospital NHS Foundation Trust,2021,12,10/03/2021,Healthcare From Foundation Trusts,QMS QEH Ophthalmology Recharge  and  Lewisha,Lewisham And Greenwich NHS Trust,8508599," 28,280.00 ",QMS QEH Ophthalmology Recharge  and  Lewisha
NHS,King's College Hospital NHS Foundation Trust,2021,12,10/02/2021,Additions - Assets Under Construction," Refurbishment of Lifts 14, 45, 46 & 57",Lift Specialists Ltd,CS1001628," 34,459.50 "," Refurbishment of Lifts 14, 45, 46 & 57"
NHS,King's College Hospital NHS Foundation Trust,2021,12,18/03/2021,Additions - Assets Under Construction," Refurbishment of Lifts 14, 45, 46 & 57",Lift Specialists Ltd,CSI001659," 34,459.50 "," Refurbishment of Lifts 14, 45, 46 & 57"
NHS,King's College Hospital NHS Foundation Trust,2021,12,10/02/2021,Additions - Assets Under Construction," Refurbishment of Lifts 14, 45, 46 & 57",Lift Specialists Ltd,CS1001627," 35,960.10 "," Refurbishment of Lifts 14, 45, 46 & 57"
NHS,King's College Hospital NHS Foundation Trust,2021,12,18/03/2021,Additions - Assets Under Construction," Refurbishment of Lifts 14, 45, 46 & 57",Lift Specialists Ltd,CSI001658," 35,960.10 "," Refurbishment of Lifts 14, 45, 46 & 57"
NHS,King's College Hospital NHS Foundation Trust,2021,12,14/03/2021,Agency Specialty Registrars,Stroke Medical Staff PRUH,Locum X Ltd,KCH2-308211a," 68,529.55 ",Stroke Medical Staff PRUH
NHS,King's College Hospital NHS Foundation Trust,2021,12,15/03/2021,Course Fees,EDT   Education and Training,March On Stress,INV-2477," 48,300.00 ",EDT   Education and Training
NHS,King's College Hospital NHS Foundation Trust,2021,12,26/02/2021,Course Fees,LDA HESL Training,Mayvin Ltd,2021-564," 46,740.00 ",LDA HESL Training
NHS,King's College Hospital NHS Foundation Trust,2021,12,04/09/2020,Additions - Assets Under Construction,Critical Care Unit (B50),Mclaughlin & Harvey Ltd,23243," 65,545.20 ",Critical Care Unit (B50)
NHS,King's College Hospital NHS Foundation Trust,2021,12,24/02/2021,Healthcare From Independent Sector,ENT Admin Pruh,Medinet Clinical Services Ltd,N317," 32,741.68 ",ENT Admin Pruh
NHS,King's College Hospital NHS Foundation Trust,2021,12,08/03/2021,Healthcare From Independent Sector,ENT Admin Pruh,Medinet Clinical Services Ltd,N403," 57,605.40 ",ENT Admin Pruh
NHS,King's College Hospital NHS Foundation Trust,2021,12,27/11/2020,Med Surg Eqpt General,Diabetes,Medtronic Ltd,1204388345," 33,115.75 ",Diabetes
NHS,King's College Hospital NHS Foundation Trust,2021,12,19/03/2021,Additions - Assets Under Construction,PRUH- Parking Scheme (I39),Mph Building Systems,2207," 32,143.68 ",PRUH- Parking Scheme (I39)
NHS,King's College Hospital NHS Foundation Trust,2021,12,12/03/2021,Additions - Assets Under Construction,Urgent and Emergency Care Programme,Mph Building Systems,2206," 572,792.40 ",Urgent and Emergency Care Programme
NHS,King's College Hospital NHS Foundation Trust,2021,12,12/01/2021,Staff Location Systems / Bleeps,ICT   PRUH Telecoms and Switchboard,Multitone Electronics Plc,132647," 44,739.60 ",ICT   PRUH Telecoms and Switchboard
NHS,King's College Hospital NHS Foundation Trust,2021,12,17/03/2021,FP10'S,Pharmacy FP10,NHS Business Services Authority,1000068510," 75,769.31 ",Pharmacy FP10
NHS,King's College Hospital NHS Foundation Trust,2021,12,24/03/2021,Injury Scheme,Injury Scheme,NHS INJURY     INV 1968 2417 2642,Chaps," 44,234.16 ",Injury Scheme
NHS,King's College Hospital NHS Foundation Trust,2021,12,18/03/2021,Legal  ,Legal  ,NHSLA SUSP     SICX404396,Chaps," 4,389,362.20 ",LEGAL
NHS,King's College Hospital NHS Foundation Trust,2021,12,16/12/2020,Additions - Software Licences,CAFM System Upgrade,NIFES Consulting Group,696-815," 27,114.05 ",CAFM System Upgrade
NHS,King's College Hospital NHS Foundation Trust,2021,12,26/11/2020,Additions - Software Licences,CAFM System Upgrade,NIFES Consulting Group,696-765," 45,114.01 ",CAFM System Upgrade
NHS,King's College Hospital NHS Foundation Trust,2021,12,10/05/2019,Executive Director,CEF Senior Management Team,Northumbria Healthcare Facilities Management Ltd,5510008027," 35,934.70 ",Senior Management Team
NHS,King's College Hospital NHS Foundation Trust,2021,12,31/01/2021,Legal Fees,Legal Finance Department,Oc Experts Services Ltd,2117/25," 103,089.00 ",Legal Finance Department
NHS,King's College Hospital NHS Foundation Trust,2021,12,24/03/2021,Additions - Assets Under Construction," Refurbishment of Lifts 14, 45, 46 & 57",Ove Arup And Partners Ltd,1078300," 35,340.00 "," Refurbishment of Lifts 14, 45, 46 & 57"
NHS,King's College Hospital NHS Foundation Trust,2021,12,01/03/2021,Healthcare From Foundation Trusts,Pharmacy QMS (Oxleas NHS),Oxleas NHS Foundation Trust,66795," 30,043.83 ",Pharmacy QMS (Oxleas NHS)
NHS,King's College Hospital NHS Foundation Trust,2021,12,01/02/2021,Healthcare From Foundation Trusts,Pharmacy QMS (Oxleas NHS),Oxleas NHS Foundation Trust,66368," 30,043.83 ",Pharmacy QMS (Oxleas NHS)
NHS,King's College Hospital NHS Foundation Trust,2021,12,01/03/2021,Non Healthcare Services From Other NHS Bodies,QMS Oxleas Charge,Oxleas NHS Foundation Trust,66878," 36,699.85 ",QMS Oxleas Charge
NHS,King's College Hospital NHS Foundation Trust,2021,12,01/02/2021,Healthcare From Foundation Trusts,QMS Oxleas Charge,Oxleas NHS Foundation Trust,66452," 36,699.85 ",QMS Oxleas Charge
NHS,King's College Hospital NHS Foundation Trust,2021,12,01/03/2021,Non Healthcare Services From Other NHS Bodies,QMS Oxleas Charge,Oxleas NHS Foundation Trust,66752," 60,449.69 ",QMS Oxleas Charge
NHS,King's College Hospital NHS Foundation Trust,2021,12,01/02/2021,Healthcare From Foundation Trusts,QMS Oxleas Charge,Oxleas NHS Foundation Trust,66325," 60,449.69 ",QMS Oxleas Charge
NHS,King's College Hospital NHS Foundation Trust,2021,12,01/03/2021,Healthcare From Foundation Trusts,Pharmacy QMS (Oxleas NHS),Oxleas NHS Foundation Trust,66940," 507,217.71 ",Pharmacy QMS (Oxleas NHS)
NHS,King's College Hospital NHS Foundation Trust,2021,12,04/02/2021,Healthcare From Foundation Trusts,Pharmacy QMS (Oxleas NHS),Oxleas NHS Foundation Trust,66525," 544,105.28 ",Pharmacy QMS (Oxleas NHS)
NHS,King's College Hospital NHS Foundation Trust,2021,12,23/02/2021,Additions - Assets Under Construction,L8 & Pseudomonas Remedial Works,Paneltech Industries Limited,INV-5887," 52,088.46 ",L8 & Pseudomonas Remedial Works
NHS,King's College Hospital NHS Foundation Trust,2021,12,16/02/2021,Additions - Assets Under Construction,L8 & Pseudomonas Remedial Works,Paneltech Industries Limited,INV-5923," 52,088.46 ",L8 & Pseudomonas Remedial Works
NHS,King's College Hospital NHS Foundation Trust,2021,12,03/03/2021,Pulse Bank Nurses,Pulse Bank Nurses,Pulse Healthcare Ltd,5328713," 45,848.94 ",Pulse Bank Nurses
NHS,King's College Hospital NHS Foundation Trust,2021,12,09/03/2021,Pulse Bank Nurses,Pulse Bank Nurses,Pulse Healthcare Ltd,5332781," 47,685.10 ",Pulse Bank Nurses
NHS,King's College Hospital NHS Foundation Trust,2021,12,22/03/2021,Pulse Bank Nurses,Pulse Bank Nurses,Pulse Healthcare Ltd,5344153," 48,411.98 ",Pulse Bank Nurses
NHS,King's College Hospital NHS Foundation Trust,2021,12,17/03/2021,Pulse Bank Nurses,Pulse Bank Nurses,Pulse Healthcare Ltd,5340901," 48,448.67 ",Pulse Bank Nurses
NHS,King's College Hospital NHS Foundation Trust,2021,12,04/03/2021,Pulse Bank Nurses,Pulse Bank Nurses,Pulse Healthcare Ltd,5328737," 60,503.95 ",Pulse Bank Nurses
NHS,King's College Hospital NHS Foundation Trust,2021,12,18/03/2021,Pulse Bank Nurses,Pulse Bank Nurses,Pulse Healthcare Ltd,5342331," 331,922.80 ",Pulse Bank Nurses
NHS,King's College Hospital NHS Foundation Trust,2021,12,25/03/2021,Pulse Bank Nurses,Pulse Bank Nurses,Pulse Healthcare Ltd,5349645," 342,178.66 ",Pulse Bank Nurses
NHS,King's College Hospital NHS Foundation Trust,2021,12,11/03/2021,Pulse Bank Nurses,Pulse Bank Nurses,Pulse Healthcare Ltd,5335606," 879,725.17 ",Pulse Bank Nurses
NHS,King's College Hospital NHS Foundation Trust,2021,12,18/03/2021,Pulse Bank Nurses,Pulse Bank Nurses,Pulse Healthcare Ltd,5342330," 891,991.78 ",Pulse Bank Nurses
NHS,King's College Hospital NHS Foundation Trust,2021,12,25/03/2021,Pulse Bank Nurses,Pulse Bank Nurses,Pulse Healthcare Ltd,5349644," 916,363.66 ",Pulse Bank Nurses
NHS,King's College Hospital NHS Foundation Trust,2021,12,04/03/2021,Pulse Bank Nurses,Pulse Bank Nurses,Pulse Healthcare Ltd,5328736," 928,133.71 ",Pulse Bank Nurses
NHS,King's College Hospital NHS Foundation Trust,2021,12,11/03/2021,Pulse Bank Nurses,Pulse Bank Nurses,Pulse Healthcare Ltd,5335607," 934,154.14 ",Pulse Bank Nurses
NHS,King's College Hospital NHS Foundation Trust,2021,12,26/02/2021,Training Expenses,ICT   Management and Security,Qa Ltd,ISL163544," 42,000.00 ",ICT   Management and Security
NHS,King's College Hospital NHS Foundation Trust,2021,12,28/02/2021,Additions - Assets Under Construction,P22 scheme (I71),R & F Insulations Ltd,PL28608," 25,479.60 ",P22 scheme (I71)
NHS,King's College Hospital NHS Foundation Trust,2021,12,28/02/2021,Additions - Assets Under Construction,P22 scheme (I71),R & F Insulations Ltd,PL28607," 40,725.60 ",P22 scheme (I71)
NHS,King's College Hospital NHS Foundation Trust,2021,12,05/03/2021,Rent,Facilities Rates or Rent,Red Circle Security Services Ltd,786/144," 52,500.00 ",Facilities Rates or Rent
NHS,King's College Hospital NHS Foundation Trust,2021,12,25/02/2021,Drugs,Stock,Roche Products Ltd,1322176879," 28,837.32 ",Stock
NHS,King's College Hospital NHS Foundation Trust,2021,12,23/02/2021,Drugs,Stock,Roche Products Ltd,1322176266," 33,278.52 ",Stock
NHS,King's College Hospital NHS Foundation Trust,2021,12,04/03/2021,Drugs,Stock,Roche Products Ltd,1322177766," 42,442.76 ",Stock
NHS,King's College Hospital NHS Foundation Trust,2021,12,18/03/2021,Drugs,Stock,Roche Products Ltd,1322179663," 45,415.44 ",Stock
NHS,King's College Hospital NHS Foundation Trust,2021,12,16/03/2021,Drugs,Stock,Roche Products Ltd,1322179146," 77,255.76 ",Stock
NHS,King's College Hospital NHS Foundation Trust,2021,12,24/02/2021,Drugs,Stock,Roche Products Ltd,1322176809," 79,240.80 ",Stock
NHS,King's College Hospital NHS Foundation Trust,2021,12,10/12/2020,Additions - Assets Under Construction,Critical Care Unit (D12),Ross Quality Control,QL/887/KCH/1/21," 46,537.56 ",Critical Care Unit (D12)
NHS,King's College Hospital NHS Foundation Trust,2021,12,18/03/2021,Additions - Assets Under Construction,Upgrade of Ventilation Systems,Russell Cawberry Ltd,630218," 85,763.86 ",Upgrade of Ventilation Systems
NHS,King's College Hospital NHS Foundation Trust,2021,12,25/01/2021,Other Transport Costs,Patient Transport,Savoy Ventures Ltd,11171," 54,000.00 ",Patient Transport
NHS,King's College Hospital NHS Foundation Trust,2021,12,01/02/2021,Other Transport Costs,Patient Transport,Savoy Ventures Ltd,11199," 54,000.00 ",Patient Transport
NHS,King's College Hospital NHS Foundation Trust,2021,12,08/03/2021,Other Transport Costs,Patient Transport,Savoy Ventures Ltd,11235," 54,000.00 ",Patient Transport
NHS,King's College Hospital NHS Foundation Trust,2021,12,15/02/2021,Other Transport Costs,Patient Transport,Savoy Ventures Ltd,11322," 54,000.00 ",Patient Transport
NHS,King's College Hospital NHS Foundation Trust,2021,12,22/02/2021,Other Transport Costs,Patient Transport,Savoy Ventures Ltd,11340," 56,905.44 ",Patient Transport
NHS,King's College Hospital NHS Foundation Trust,2021,12,08/02/2021,Other Transport Costs,Patient Transport,Savoy Ventures Ltd,11297," 60,000.00 ",Patient Transport
NHS,King's College Hospital NHS Foundation Trust,2021,12,08/02/2021,Other Transport Costs,Patient Transport,Savoy Ventures Ltd,11299," 60,000.00 ",Patient Transport
NHS,King's College Hospital NHS Foundation Trust,2021,12,08/02/2021,Other Transport Costs,Patient Transport,Savoy Ventures Ltd,11301," 60,000.00 ",Patient Transport
NHS,King's College Hospital NHS Foundation Trust,2021,12,08/02/2021,Other Transport Costs,Patient Transport,Savoy Ventures Ltd,11303," 60,000.00 ",Patient Transport
NHS,King's College Hospital NHS Foundation Trust,2021,12,08/02/2021,Other Transport Costs,Patient Transport,Savoy Ventures Ltd,11305," 60,000.00 ",Patient Transport
NHS,King's College Hospital NHS Foundation Trust,2021,12,08/02/2021,Other Transport Costs,Patient Transport,Savoy Ventures Ltd,11307," 60,000.00 ",Patient Transport
NHS,King's College Hospital NHS Foundation Trust,2021,12,08/02/2021,Other Transport Costs,Patient Transport,Savoy Ventures Ltd,11309," 60,000.00 ",Patient Transport
NHS,King's College Hospital NHS Foundation Trust,2021,12,01/03/2021,Other Transport Costs,Patient Transport,Savoy Ventures Ltd,11355," 60,000.00 ",Patient Transport
NHS,King's College Hospital NHS Foundation Trust,2021,12,08/03/2021,Other Transport Costs,Patient Transport,Savoy Ventures Ltd,11383," 60,000.00 ",Patient Transport
NHS,King's College Hospital NHS Foundation Trust,2021,12,15/03/2021,Other Transport Costs,Patient Transport,Savoy Ventures Ltd,11417," 60,000.00 ",Patient Transport
NHS,King's College Hospital NHS Foundation Trust,2021,12,29/03/2021,Other Transport Costs,Patient Transport,Savoy Ventures Ltd,11465," 60,000.00 ",Patient Transport
NHS,King's College Hospital NHS Foundation Trust,2021,12,17/03/2021,Miscellaneous Expenditure,PGMDE Denmark Hill,Scotia Uk Plc,W030032," 28,605.60 ",PGMDE Denmark Hill
NHS,King's College Hospital NHS Foundation Trust,2021,12,22/03/2021,Additions - Assets Under Construction,Replacement Medical Air Plants x 3,SHJ Hospital Pipelines Limited,39935," 86,542.80 ",Replacement Medical Air Plants x 3
NHS,King's College Hospital NHS Foundation Trust,2021,12,23/03/2021,Additions - Assets Under Construction,Replacement Medical Air Plants x 3,SHJ Hospital Pipelines Limited,39940," 88,954.80 ",Replacement Medical Air Plants x 3
NHS,King's College Hospital NHS Foundation Trust,2021,12,05/03/2021,EQUIPMENT LEASE,EQUIPMENT LEASE,SIEMENS FINANCIAL   7955539,Chaps," 28,716.00 ",EQUIPMENT LEASE
NHS,King's College Hospital NHS Foundation Trust,2021,12,08/03/2021,Additions - Assets Under Construction,CT 1 Replacement Enabling Works,Siemens Healthcare Ltd,1051095263," 128,040.00 ",CT 1 Replacement Enabling Works
NHS,King's College Hospital NHS Foundation Trust,2021,12,26/03/2021,Course Fees,LDA HESL Training,Skills For Health Ltd,9557," 60,000.00 ",LDA HESL Training
NHS,King's College Hospital NHS Foundation Trust,2021,12,17/02/2021,Home Loans,Salary Sacrifice Dept,Sme Hci Ltd,134430#," 44,499.04 ",Technology & Cycle Scheme
NHS,King's College Hospital NHS Foundation Trust,2021,12,01/03/2021,Home Loans,Salary Sacrifice Dept,Sme Hci Ltd,134502," 45,945.12 ",Technology & Cycle Scheme
NHS,King's College Hospital NHS Foundation Trust,2021,12,16/02/2021,Computer Software / License  Fees,Corporate Human Resources,Softcat Plc,INV02834719," 112,210.80 ",Corporate Human Resources
NHS,King's College Hospital NHS Foundation Trust,2021,12,26/03/2021,Computer Software / License  Fees,Corporate Human Resources,Softcat Plc,INV02880176," 129,058.80 ",Corporate Human Resources
NHS,King's College Hospital NHS Foundation Trust,2021,12,26/02/2021,Additions - Information Technology,TIE Replacement,Softcat Plc,INV02851651," 172,800.00 ",TIE Replacement
NHS,King's College Hospital NHS Foundation Trust,2021,12,23/03/2021,Additions - Assets Under Construction,Upgrade of Ventilation Systems,Solarex (GB) Ltd,KCH-AHU-001," 29,841.00 ",Upgrade of Ventilation Systems
NHS,King's College Hospital NHS Foundation Trust,2021,12,23/03/2021,B8b Psychotherapist,Employee Relations,South London And Maudsley NHS Foundation Trust,M0133212," 28,292.67 ",Recharges
NHS,King's College Hospital NHS Foundation Trust,2021,12,23/03/2021,Consultant,Dental Oral Surgery,South London And Maudsley NHS Foundation Trust,M0133171," 30,966.58 ",ARC PH  and  MM   Diabetes
NHS,King's College Hospital NHS Foundation Trust,2021,12,23/03/2021,Healthcare From Foundation Trusts,100 U KCH General Surgery SLR Expenditur,South London And Maudsley NHS Foundation Trust,M0133169," 32,916.00 ",Recharges
NHS,King's College Hospital NHS Foundation Trust,2021,12,23/03/2021,B8a Clinical Scientist,Cardiac Rehabilitation,South London And Maudsley NHS Foundation Trust,M0133174," 36,461.88 ",Recharges
NHS,King's College Hospital NHS Foundation Trust,2021,12,23/03/2021,B7 Psychotherapist,Child Health Support Staff,South London And Maudsley NHS Foundation Trust,M0133166," 45,000.00 ",Recharges
NHS,King's College Hospital NHS Foundation Trust,2021,12,23/03/2021,B6 Qualified Nurse,Central Nurse MGT TEAM DH,South London And Maudsley NHS Foundation Trust,M0133216," 55,000.00 ",Recharges
NHS,King's College Hospital NHS Foundation Trust,2021,12,03/03/2021,Consultant - Other Organisation Recharges,Corporate Human Resources,South London And Maudsley NHS Foundation Trust,M0132853," 56,000.00 ",Corporate Human Resources
NHS,King's College Hospital NHS Foundation Trust,2021,12,16/03/2021,Healthcare From Foundation Trusts,Neuroradiology,South London And Maudsley NHS Foundation Trust,M0133039," 79,512.51 ",Neuroradiology
NHS,King's College Hospital NHS Foundation Trust,2021,12,12/03/2021,Non Healthcare Services From Other NHS Bodies,KHP Mind  and  Body Institute,South London And Maudsley NHS Foundation Trust,M0132927," 101,275.00 ",KHP Mind  and  Body Institute
NHS,King's College Hospital NHS Foundation Trust,2021,12,23/03/2021,B5 Qualified Nurse,ED Mental Health Nurses,South London And Maudsley NHS Foundation Trust,M0133168," 123,099.71 ",Recharges
NHS,King's College Hospital NHS Foundation Trust,2021,12,23/03/2021,Consultant,Alcohol Team,South London And Maudsley NHS Foundation Trust,M0133215," 234,980.00 "," Refurbishment of Lifts 14, 45, 46 & 57"
NHS,King's College Hospital NHS Foundation Trust,2021,12,18/02/2021,Additions - Assets Under Construction," Refurbishment of Lifts 14, 45, 46 & 57",Specialist Lift Services Ltd,NV25391," 30,160.80 "," Refurbishment of Lifts 14, 45, 46 & 57"
NHS,King's College Hospital NHS Foundation Trust,2021,12,03/03/2021,Senior House Officer,Corporate Human Resources,St George'S University Hospitals NHS Foundation Trust,6483936," 80,693.92 ",Corporate Human Resources
NHS,King's College Hospital NHS Foundation Trust,2021,12,03/03/2021,Senior House Officer,Corporate Human Resources,St George'S University Hospitals NHS Foundation Trust,6483937," 91,812.77 ",Corporate Human Resources
NHS,King's College Hospital NHS Foundation Trust,2021,12,17/03/2021,Training Expenses,ARC PH  and  MM   Diabetes,St Georges University Of London,4092792," 29,220.00 ",ARC PH  and  MM   Diabetes
NHS,King's College Hospital NHS Foundation Trust,2021,12,28/02/2021,Postage and Carriage,Postage (P.R.U.),Swiss Post Solutions Ltd,1800009540," 43,462.97 ",Postage and Carriage
NHS,King's College Hospital NHS Foundation Trust,2021,12,28/02/2021,Postage and Carriage,Post Room,Swiss Post Solutions Ltd,1800009539," 90,433.09 ",Postage and Carriage
NHS,King's College Hospital NHS Foundation Trust,2021,12,28/02/2021,Taxi And Other Vehicle Hire,Transport,Swiss Post Solutions Ltd,1800009632," 137,823.49 ",Transport
NHS,King's College Hospital NHS Foundation Trust,2021,12,30/11/2020,Taxi And Other Vehicle Hire,Transport,Swiss Post Solutions Ltd,1800007420," 178,002.17 ",Transport
NHS,King's College Hospital NHS Foundation Trust,2021,12,31/01/2021,Taxi And Other Vehicle Hire,Transport,Swiss Post Solutions Ltd,1800009138," 187,071.62 ",Transport
NHS,King's College Hospital NHS Foundation Trust,2021,12,31/12/2020,Taxi And Other Vehicle Hire,Transport,Swiss Post Solutions Ltd,1800008435," 256,335.23 ",Transport
NHS,King's College Hospital NHS Foundation Trust,2021,12,04/02/2021,Healthcare From Foundation Trusts,Fetal Medicine Serv Agreement,The Fetal Medicine Foundation,FMF461," 127,431.58 ",Fetal Medicine Serv Agreement
NHS,King's College Hospital NHS Foundation Trust,2021,12,02/09/2020,Healthcare From Foundation Trusts,Fetal Medicine Serv Agreement,The Fetal Medicine Foundation,FMF449," 416,666.00 ",Fetal Medicine Serv Agreement
NHS,King's College Hospital NHS Foundation Trust,2021,12,14/01/2021,Laboratory Equipment - Maintenance,Haematology   Stem Cell Lab,Thermo Fisher Bioservices,88735," 83,655.60 ",Haematology   Stem Cell Lab
NHS,King's College Hospital NHS Foundation Trust,2021,12,22/03/2021,Additions - Assets Under Construction, Bosari Tanks Enabling Works,Trabur Ltd,CIN101," 119,955.02 ", Bosari Tanks Enabling Works
NHS,King's College Hospital NHS Foundation Trust,2021,12,29/03/2021,Additions - Information Technology,Robotic Process Automation,Trustco Plc,139867," 345,600.00 ",Robotic Process Automation
NHS,King's College Hospital NHS Foundation Trust,2021,12,01/03/2021,Leased Cars : Contract,Salary Sacrifice Dept,Tuskerdirect Ltd,46492," 109,416.03 ",Vehicle Leases
NHS,King's College Hospital NHS Foundation Trust,2021,12,18/02/2021,Healthcare From Commercial Sector,Pathology JV Contract,Viapath Analytics Llp,91748460," 26,910.84 ",Pathology JV Contract
NHS,King's College Hospital NHS Foundation Trust,2021,12,18/02/2021,Healthcare From Commercial Sector,Pathology JV Contract,Viapath Analytics Llp,91748461," 56,964.77 ",Pathology JV Contract
NHS,King's College Hospital NHS Foundation Trust,2021,12,18/02/2021,Healthcare From Commercial Sector,Pathology JV Contract,Viapath Analytics Llp,91748462," 56,964.77 ",Pathology JV Contract
NHS,King's College Hospital NHS Foundation Trust,2021,12,17/03/2021,Healthcare From Commercial Sector,Pathology JV Contract,Viapath Analytics Llp,91753944," 59,527.23 ",Pathology JV Contract
NHS,King's College Hospital NHS Foundation Trust,2021,12,17/03/2021,Healthcare From Commercial Sector,Pathology JV Contract,Viapath Analytics Llp,91753945," 65,700.81 ",Pathology JV Contract
NHS,King's College Hospital NHS Foundation Trust,2021,12,26/02/2021,Healthcare From Commercial Sector,Pathology JV Contract,Viapath Analytics Llp,91750303," 93,712.06 ",Pathology JV Contract
NHS,King's College Hospital NHS Foundation Trust,2021,12,26/02/2021,Healthcare From Commercial Sector,Pathology JV Contract,Viapath Analytics Llp,91750304," 115,814.40 ",Pathology JV Contract
NHS,King's College Hospital NHS Foundation Trust,2021,12,24/03/2021,Healthcare From Commercial Sector,Pathology JV Contract,Viapath Analytics Llp,91755367," 115,970.31 ",Pathology JV Contract
NHS,King's College Hospital NHS Foundation Trust,2021,12,18/02/2021,Healthcare From Commercial Sector,Pathology JV Contract,Viapath Analytics Llp,91748456," 231,596.28 ",Pathology JV Contract
NHS,King's College Hospital NHS Foundation Trust,2021,12,18/02/2021,Healthcare From Commercial Sector,Pathology JV Contract,Viapath Analytics Llp,91748457," 261,357.51 ",Pathology JV Contract
NHS,King's College Hospital NHS Foundation Trust,2021,12,18/02/2021,Healthcare From Commercial Sector,Pathology JV Contract,Viapath Analytics Llp,91748454," 295,684.76 ",Pathology JV Contract
NHS,King's College Hospital NHS Foundation Trust,2021,12,18/02/2021,Healthcare From Commercial Sector,Pathology JV Contract,Viapath Analytics Llp,91748455," 298,433.38 ",Pathology JV Contract
NHS,King's College Hospital NHS Foundation Trust,2021,12,02/02/2021,Healthcare From Commercial Sector,Pathology JV Contract,Viapath Analytics Llp,91746572," 545,504.20 ",Pathology JV Contract
NHS,King's College Hospital NHS Foundation Trust,2021,12,02/02/2021,Healthcare From Commercial Sector,Pathology JV Contract,Viapath Analytics Llp,91746573," 1,406,747.90 ",Pathology JV Contract
NHS,King's College Hospital NHS Foundation Trust,2021,12,18/02/2021,Healthcare From Commercial Sector,Pathology JV Contract,Viapath Services Llp,91748452," 27,011.52 ",Pathology JV Contract
NHS,King's College Hospital NHS Foundation Trust,2021,12,22/12/2020,Healthcare From Commercial Sector,Pathology JV Contract,Viapath Services Llp,91737605," 30,193.15 ",Pathology JV Contract
NHS,King's College Hospital NHS Foundation Trust,2021,12,18/02/2021,Healthcare From Commercial Sector,Pathology JV Contract,Viapath Services Llp,91748451," 35,658.00 ",Pathology JV Contract
NHS,King's College Hospital NHS Foundation Trust,2021,12,24/03/2021,Healthcare From Commercial Sector,Pathology JV Contract,Viapath Services Llp,91755370," 41,910.53 ",Pathology JV Contract
NHS,King's College Hospital NHS Foundation Trust,2021,12,26/01/2021,Healthcare From Commercial Sector,Pathology JV Contract,Viapath Services Llp,91744221," 120,037.92 ",Pathology JV Contract
NHS,King's College Hospital NHS Foundation Trust,2021,12,22/12/2020,Healthcare From Commercial Sector,Pathology JV Contract,Viapath Services Llp,91737603," 128,444.16 ",Pathology JV Contract
NHS,King's College Hospital NHS Foundation Trust,2021,12,24/03/2021,Healthcare From Commercial Sector,Pathology JV Contract,Viapath Services Llp,91755372," 134,535.89 ",Pathology JV Contract
NHS,King's College Hospital NHS Foundation Trust,2021,12,22/12/2020,Healthcare From Commercial Sector,Pathology JV Contract,Viapath Services Llp,91737604," 165,022.85 ",Pathology JV Contract
NHS,King's College Hospital NHS Foundation Trust,2021,12,18/02/2021,Healthcare From Commercial Sector,Pathology JV Contract,Viapath Services Llp,91748453," 218,788.99 ",Pathology JV Contract
NHS,King's College Hospital NHS Foundation Trust,2021,12,17/03/2021,Healthcare From Commercial Sector,Pathology JV Contract,Viapath Services Llp,91753938," 243,738.04 ",Pathology JV Contract
NHS,King's College Hospital NHS Foundation Trust,2021,12,17/03/2021,Healthcare From Commercial Sector,Pathology JV Contract,Viapath Services Llp,91753939," 253,462.07 ",Pathology JV Contract
NHS,King's College Hospital NHS Foundation Trust,2021,12,18/02/2021,Healthcare From Commercial Sector,Pathology JV Contract,Viapath Services Llp,91748449," 770,229.38 ",Pathology JV Contract
NHS,King's College Hospital NHS Foundation Trust,2021,12,18/02/2021,Healthcare From Commercial Sector,Pathology JV Contract,Viapath Services Llp,91748447," 858,589.57 ",Pathology JV Contract
NHS,King's College Hospital NHS Foundation Trust,2021,12,18/02/2021,Healthcare From Commercial Sector,Pathology JV Contract,Viapath Services Llp,91748448," 863,390.34 ",Pathology JV Contract
NHS,King's College Hospital NHS Foundation Trust,2021,12,08/02/2021,Additions - Assets Under Construction,Urgent and Emergency Care Programme,Wilby & Burnett Llp,14396/3416," 36,864.00 ",Urgent and Emergency Care Programme
NHS,King's College Hospital NHS Foundation Trust,2021,12,08/01/2021,Additions - Assets Under Construction,Critical Care Unit (D12),Wsp Uk Ltd,64494861," 28,320.00 ",Critical Care Unit (D12)
NHS,King's College Hospital NHS Foundation Trust,2021,12,31/10/2020,Additions - Assets Under Construction,Backlog Maintenance,Zeta Compliance Services Ltd,27110," 29,996.40 ",Backlog Maintenance
,,,,,,,,," 71,633,400.51 ",
